[Event "3rd FIDE WCCC Blitz G12 2019"]
[Site "Minsk"]
[Date "2019.08.18"]
[Round "7.6"]
[White "Komissarova, Soigina"]
[Black "Kirdyashkina, Ekaterina"]
[Result "1/2-1/2"]
[ECO "A20"]
[WhiteElo "1663"]
[BlackElo "1691"]
[Annotator "NA"]
[PlyCount "215"]
[EventDate "2019.08.18"]
[EventType "swiss"]
[EventCountry "BLR"]
[SourceTitle "playchess.com"]
[Source "ChessBase"]
[SourceQuality "1"]
[TimeControl "300+2"]

1. c4 {[%emt 0:00:00]} e5 {[%emt 0:00:00]} 2. g3 {[%emt 0:00:00]} Nc6 {[%emt 0:00:00]} 3. Bg2 {[%emt 0:00:01]} d6 {[%emt 0:00:02]} 4. Nc3 {[%emt 0:00:02]} Nf6 {[%emt 0:00:02]} 5. e4 {[%emt 0:00:01]} Nd4 {[%emt 0:00:05]} 6. Nge2 {[%emt 0:00:05]} c5 {[%emt 0:00:02]} 7. O-O {[%emt 0:00:04]} g6 {[%emt 0:00:04]} 8. h3 {[%emt 0:00:05]} Bg7 {[%emt 0:00:02]} 9. d3 {[%emt 0:00:02]} O-O {[%emt 0:00:03]} 10. Kh2 {[%emt 0:00:01]} Kh8 {[%emt 0:00:20]} 11. Be3 {[%emt 0:00:04]} Nd7 {[%emt 0:00:13]} 12. f4 {[%emt 0:00:02]} Nb6 {[%emt 0:00:59]} 13. Rb1 {[%emt 0:00:17]} Bd7 {[%emt 0:00:09]} 14. b4 {[%emt 0:00:25]} exf4 {[%emt 0:00:15]} 15. gxf4 {[%emt 0:00:02]} cxb4 {[%emt 0:00:20]} 16. Bxd4 {[%emt 0:01:30]} Bxd4 {[%emt 0:00:12]} 17. Nxd4 {[%emt 0:00:16]} bxc3 {[%emt 0:00:02]} 18. Ne2 {[%emt 0:00:03]} Ba4 {[%emt 0:00:03]} 19. Qc1 {[%emt 0:00:08]} c2 {[%emt 0:00:07]} 20. Rb2 {[%emt 0:00:13]} Qf6 {[%emt 0:00:09]} 21. Ng3 {[%emt 0:00:45]} Qc3 {[%emt 0:00:06]} 22. Rf3 {[%emt 0:00:10]} Rac8 {[%emt 0:00:12]} 23. Ne2 {[%emt 0:00:02]} Qg7 {[%emt 0:00:22]} 24. Rb4 {[%emt 0:00:37]} Rc6 {[%emt 0:00:14]} 25. Rf2 {[%emt 0:00:12]} Rcc8 {[%emt 0:00:03]} 26. Bf3 {[%emt 0:00:04]} Qh6 {[%emt 0:00:16]} 27. Nc3 {[%emt 0:00:05]} Bd7 {[%emt 0:00:04]} 28. Bg2 {[%emt 0:00:06]} f5 {[%emt 0:00:10]} 29. Qxc2 {[%emt 0:00:01]} fxe4 {[%emt 0:00:04]} 30. Nxe4 {[%emt 0:00:02]} Rxf4 {[%emt 0:00:07]} 31. Qb2+ {[%emt 0:00:04]} Kg8 {[%emt 0:00:06]} 32. Nf6+ {[%emt 0:00:02]} Rxf6 {[%emt 0:00:01]} 33. Qxf6 {[%emt 0:00:02]} Bf5 {[%emt 0:00:09]} 34. Qd4 {[%emt 0:00:09]} Rf8 {[%emt 0:00:08]} 35. Rxb6 {[%emt 0:00:06]} axb6 {[%emt 0:00:01]} 36. Bd5+ {[%emt 0:00:01]} Rf7 {[%emt 0:00:02]} 37. Bxf7+ Kxf7 38. Qd5+ {[%emt 0:00:06]} Kg7 {[%emt 0:00:07]} 39. Qf3 {[%emt 0:00:01]} Qh4 {[%emt 0:00:07]} 40. Re2 {[%emt 0:00:03]} Qd4 {[%emt 0:00:06]} 41. Qxb7+ {[%emt 0:00:05]} Kh6 {[%emt 0:00:04]} 42. Qf3 {[%emt 0:00:08]} Kg7 {[%emt 0:00:06]} 43. Qe3 {[%emt 0:00:05]} Qxd3 {[%emt 0:00:14]} 44. Qxd3 {[%emt 0:00:00]} Bxd3 {[%emt 0:00:01]} 45. Rd2 {[%emt 0:00:01]} Bxc4 {[%emt 0:00:01]} 46. Rxd6 {[%emt 0:00:01]} Bxa2 {[%emt 0:00:01]} 47. Rxb6 {[%emt 0:00:01]} Bc4 {[%emt 0:00:02]} 48. Kg3 {[%emt 0:00:01]} Bd3 {[%emt 0:00:01]} 49. h4 {[%emt 0:00:01]} h5 {[%emt 0:00:02]} 50. Kf4 {[%emt 0:00:02]} Kh6 {[%emt 0:00:03]} 51. Rd6 {[%emt 0:00:03]} Bf5 {[%emt 0:00:01]} 52. Ke5 {[%emt 0:00:02]} Bb1 {[%emt 0:00:03]} 53. Kf6 {[%emt 0:00:01]} Bf5 {[%emt 0:00:05]} 54. Rb6 {[%emt 0:00:03]} Kh7 {[%emt 0:00:03]} 55. Rb8 {[%emt 0:00:03]} Be4 {[%emt 0:00:02]} 56. Kf7 {[%emt 0:00:05]} Bf5 {[%emt 0:00:02]} 57. Ra8 {[%emt 0:00:06]} Be4 {[%emt 0:00:02]} 58. Ra7 {[%emt 0:00:01]} Bf5 {[%emt 0:00:02]} 59. Kf6+ {[%emt 0:00:02]} Kh6 {[%emt 0:00:02]} 60. Rg7 {[%emt 0:00:02]} Bd3 {[%emt 0:00:02]} 61. Rf7 {[%emt 0:00:02]} Bf5 {[%emt 0:00:02]} 62. Rf8 {[%emt 0:00:01]} Kh7 {[%emt 0:00:00]} 63. Rd8 {[%emt 0:00:04]} Be4 {[%emt 0:00:02]} 64. Rd7+ {[%emt 0:00:01]} Kh6 {[%emt 0:00:02]} 65. Kf7 {[%emt 0:00:03]} Bf5 {[%emt 0:00:01]} 66. Rd8 {[%emt 0:00:01]} Kh7 {[%emt 0:00:02]} 67. Rb8 {[%emt 0:00:03]} Be4 {[%emt 0:00:03]} 68. Rb4 {[%emt 0:00:02]} Bf5 {[%emt 0:00:01]} 69. Kf6 {[%emt 0:00:03]} Kh6 {[%emt 0:00:02]} 70. Rb8 {[%emt 0:00:01]} Kh7 {[%emt 0:00:01]} 71. Kf7 {[%emt 0:00:02]} Be4 {[%emt 0:00:02]} 72. Re8 {[%emt 0:00:04]} Bf5 73. Re7 Bd3 {[%emt 0:00:06]} 74. Kf8+ {[%emt 0:00:02]} Kh8 {[%emt 0:00:05]} 75. Rd7 {[%emt 0:00:04]} Bf5 {[%emt 0:00:01]} 76. Rc7 {[%emt 0:00:01]} Be4 {[%emt 0:00:01]} 77. Ra7 {[%emt 0:00:03]} Bf5 {[%emt 0:00:01]} 78. Kf7 {[%emt 0:00:02]} Kh7 {[%emt 0:00:01]} 79. Kf8+ {[%emt 0:00:01]} Kh8 {[%emt 0:00:01]} 80. Rc7 {[%emt 0:00:02]} Be4 {[%emt 0:00:03]} 81. Re7 {[%emt 0:00:01]} Bf5 {[%emt 0:00:01]} 82. Rf7 {[%emt 0:00:02]} Be4 {[%emt 0:00:02]} 83. Rc7 {[%emt 0:00:03]} Bf5 {[%emt 0:00:01]} 84. Rg7 {[%emt 0:00:03]} Be4 {[%emt 0:00:02]} 85. Kf7 {[%emt 0:00:01]} Bf5 {[%emt 0:00:03]} 86. Kf6 {[%emt 0:00:02]} Be4 {[%emt 0:00:02]} 87. Re7 {[%emt 0:00:02]} Bf5 {[%emt 0:00:01]} 88. Re8+ {[%emt 0:00:03]} Kh7 {[%emt 0:00:00]} 89. Kf7 {[%emt 0:00:01]} Bd3 {[%emt 0:00:02]} 90. Re5 {[%emt 0:00:02]} Bf5 {[%emt 0:00:01]} 91. Kf6 {[%emt 0:00:01]} Bc2 {[%emt 0:00:03]} 92. Kf7 {[%emt 0:00:02]} Bf5 {[%emt 0:00:01]} 93. Rc5 {[%emt 0:00:01]} Be4 {[%emt 0:00:01]} 94. Rc8 {[%emt 0:00:01]} Bf5 {[%emt 0:00:01]} 95. Rb8 {[%emt 0:00:01]} Be4 {[%emt 0:00:01]} 96. Rb5 {[%emt 0:00:02]} Bf5 {[%emt 0:00:01]} 97. Ra5 {[%emt 0:00:01]} Be4 {[%emt 0:00:02]} 98. Rc5 {[%emt 0:00:01]} Bf5 {[%emt 0:00:01]} 99. Kf6 {[%emt 0:00:03]} Be4 {[%emt 0:00:03]} 100. Re5 {[%emt 0:00:01]} Bf5 {[%emt 0:00:02]} 101. Re7+ {[%emt 0:00:02]} Kh6 {[%emt 0:00:03]} 102. Rg7 {[%emt 0:00:03]} Bd3 {[%emt 0:00:02]} 103. Kf7 {[%emt 0:00:02]} Bc4+ {[%emt 0:00:02]} 104. Kf8 {[%emt 0:00:01]} Bb3 {[%emt 0:00:04]} 105. Re7 {[%emt 0:00:03]} Ba2 {[%emt 0:00:02]} 106. Ra7 {[%emt 0:00:02]} Bc4 {[%emt 0:00:01]} 107. Rc7 {[%emt 0:00:09]} Bb3 {[%emt 0:00:02]} 108. Ra7 {[%emt 0:00:02]} 1/2-1/2

[Event "3rd FIDE WCCC Blitz G12 2019"]
[Site "Minsk"]
[Date "2019.08.18"]
[Round "8.1"]
[White "Vlasova, Olesia"]
[Black "Zhapova, Yana"]
[Result "0-1"]
[ECO "A06"]
[WhiteElo "1799"]
[BlackElo "1809"]
[Annotator "NA"]
[PlyCount "66"]
[EventDate "2019.08.18"]
[EventType "swiss"]
[EventCountry "BLR"]
[SourceTitle "playchess.com"]
[Source "ChessBase"]
[SourceQuality "1"]
[TimeControl "300+2"]

1. Nf3 {[%emt 0:00:00]} d5 {[%emt 0:00:00]} 2. g3 {[%emt 0:00:01]} Nf6 {[%emt 0:00:03]} 3. Bg2 {[%emt 0:00:05]} c6 {[%emt 0:00:00]} 4. O-O {[%emt 0:00:05]} Bf5 {[%emt 0:00:03]} 5. b3 {[%emt 0:00:01]} h6 {[%emt 0:00:07]} 6. Bb2 {[%emt 0:00:02]} e6 {[%emt 0:00:01]} 7. c4 {[%emt 0:00:04]} Be7 {[%emt 0:00:06]} 8. d3 {[%emt 0:00:01]} O-O {[%emt 0:00:02]} 9. Nbd2 {[%emt 0:00:03]} Nbd7 {[%emt 0:00:05]} 10. a3 {[%emt 0:00:09]} a5 {[%emt 0:00:03]} 11. Bc3 {[%emt 0:00:09]} Bh7 {[%emt 0:00:29]} 12. b4 axb4 13. axb4 {[%emt 0:00:14]} Qb6 {[%emt 0:00:10]} 14. Qb3 {[%emt 0:00:09]} Qc7 {[%emt 0:00:25]} 15. Ra3 {[%emt 0:00:25]} Rxa3 16. Qxa3 {[%emt 0:00:01]} e5 {[%emt 0:00:40]} 17. Ra1 {[%emt 0:00:20]} e4 {[%emt 0:00:01]} 18. dxe4 {[%emt 0:00:43]} dxe4 {[%emt 0:00:02]} 19. Nd4 {[%emt 0:00:12]} c5 {[%emt 0:00:08]} 20. bxc5 Bxc5 {[%emt 0:00:03]} 21. Qb3 {[%emt 0:00:22]} Rd8 {[%emt 0:00:47]} 22. e3 {[%emt 0:00:16]} Ne5 {[%emt 0:00:10]} 23. Rb1 {[%emt 0:00:24]} b6 {[%emt 0:00:06]} 24. Ra1 {[%emt 0:00:06]} Qb8 {[%emt 0:00:32]} 25. Ra4 {[%emt 0:00:15]} Qc7 {[%emt 0:00:33]} 26. Qa2 {[%emt 0:00:04]} Nd3 {[%emt 0:00:21]} 27. Ra7 {[%emt 0:00:09]} Qc8 {[%emt 0:00:01]} 28. h4 {[%emt 0:00:28]} b5 {[%emt 0:00:05]} 29. cxb5 {[%emt 0:00:10]} Bxa7 {[%emt 0:00:02]} 30. Qxa7 {[%emt 0:00:04]} Qxc3 {[%emt 0:00:07]} 31. N2b3 {[%emt 0:00:26]} Qe1+ {[%emt 0:00:07]} 32. Kh2 {[%emt 0:00:05]} Ng4+ {[%emt 0:00:05]} 33. Kh3 {[%emt 0:00:05]} Ndxf2# {[%emt 0:00:02] Kxg4 Nxg4} 0-1

[Event "3rd FIDE WCCC Blitz G12 2019"]
[Site "Minsk"]
[Date "2019.08.18"]
[Round "8.2"]
[White "Shubenkova, Veronika"]
[Black "Vu, My Linh"]
[Result "1-0"]
[ECO "E81"]
[WhiteElo "1740"]
[BlackElo "1467"]
[Annotator "NA"]
[PlyCount "127"]
[EventDate "2019.08.18"]
[EventType "swiss"]
[EventCountry "BLR"]
[SourceTitle "playchess.com"]
[Source "ChessBase"]
[SourceQuality "1"]
[TimeControl "300+2"]

1. d4 {[%emt 0:00:00]} Nf6 {[%emt 0:00:00]} 2. c4 {[%emt 0:00:00]} g6 {[%emt 0:00:00]} 3. Nc3 {[%emt 0:00:01]} Bg7 {[%emt 0:00:00]} 4. e4 {[%emt 0:00:00]} d6 {[%emt 0:00:01]} 5. f3 {[%emt 0:00:01]} O-O {[%emt 0:00:03]} 6. Be3 {[%emt 0:00:01]} a6 {[%emt 0:00:03]} 7. Qd2 {[%emt 0:00:01]} Re8 {[%emt 0:00:05]} 8. Bd3 {[%emt 0:00:02]} Nc6 {[%emt 0:00:02]} 9. Nge2 {[%emt 0:00:03]} e5 {[%emt 0:00:01]} 10. d5 {[%emt 0:00:02]} Ne7 {[%emt 0:00:01]} 11. g4 {[%emt 0:00:01]} h5 {[%emt 0:00:07]} 12. gxh5 {[%emt 0:00:04]} Nxh5 {[%emt 0:00:02]} 13. Ng3 {[%emt 0:00:02]} Nf6 14. h4 Kf8 {[%emt 0:00:53]} 15. O-O-O {[%emt 0:00:06]} b5 {[%emt 0:00:15]} 16. c5 {[%emt 0:00:05]} b4 {[%emt 0:00:02]} 17. Nce2 {[%emt 0:00:01]} a5 {[%emt 0:00:04]} 18. c6 {[%emt 0:00:15]} Ba6 {[%emt 0:00:02]} 19. h5 {[%emt 0:00:02]} Bxd3 {[%emt 0:00:26]} 20. Qxd3 {[%emt 0:00:02]} a4 {[%emt 0:00:02]} 21. h6 {[%emt 0:00:15]} Bh8 {[%emt 0:00:02]} 22. h7 {[%emt 0:00:01]} Nc8 {[%emt 0:00:30]} 23. Bg5 {[%emt 0:00:09]} Nb6 {[%emt 0:00:10]} 24. Kb1 {[%emt 0:00:18]} Qb8 {[%emt 0:00:08]} 25. Bxf6 {[%emt 0:00:04]} Bxf6 {[%emt 0:00:02]} 26. h8=Q+ {[%emt 0:00:01]} Bxh8 {[%emt 0:00:02]} 27. Rxh8+ {[%emt 0:00:01]} Ke7 {[%emt 0:00:03]} 28. Rxe8+ {[%emt 0:00:06]} Qxe8 {[%emt 0:00:02]} 29. Rh1 {[%emt 0:00:04]} a3 {[%emt 0:00:04]} 30. b3 {[%emt 0:00:01]} Qg8 {[%emt 0:00:07]} 31. Qe3 {[%emt 0:00:08]} Qg7 {[%emt 0:00:07]} 32. Qg5+ {[%emt 0:00:02]} f6 {[%emt 0:00:04]} 33. Qh6 {[%emt 0:00:01]} Rg8 {[%emt 0:00:13]} 34. Qxg7+ {[%emt 0:00:03]} Rxg7 {[%emt 0:00:01]} 35. Rh8 {[%emt 0:00:01]} Rf7 {[%emt 0:00:17]} 36. Rg8 {[%emt 0:00:02]} f5 {[%emt 0:00:04]} 37. Rxg6 {[%emt 0:00:31]} fxe4 {[%emt 0:00:04]} 38. fxe4 {[%emt 0:00:01]} Nc8 {[%emt 0:00:08]} 39. Nf5+ {[%emt 0:00:02]} Kf8 40. Rh6 Kg8 {[%emt 0:00:18]} 41. Neg3 {[%emt 0:00:03]} Ne7 {[%emt 0:00:22]} 42. Kc2 {[%emt 0:00:01]} Nxf5 {[%emt 0:00:22]} 43. Nxf5 {[%emt 0:00:01]} Rf8 {[%emt 0:00:12]} 44. Kd3 {[%emt 0:00:13]} Rb8 {[%emt 0:00:10]} 45. Kc4 {[%emt 0:00:02]} Rb6 {[%emt 0:00:06]} 46. Nxd6 {[%emt 0:00:05]} Kg7 {[%emt 0:00:10]} 47. Nf5+ {[%emt 0:00:04]} Kg8 {[%emt 0:00:01]} 48. Re6 {[%emt 0:00:01]} Kf7 {[%emt 0:00:02]} 49. Rxe5 {[%emt 0:00:02]} Kf6 {[%emt 0:00:01]} 50. Re7 {[%emt 0:00:01]} Kg5 {[%emt 0:00:02]} 51. Rxc7 {[%emt 0:00:01]} Kf4 {[%emt 0:00:01]} 52. Nd6 {[%emt 0:00:02]} Ke5 {[%emt 0:00:01]} 53. Kc5 {[%emt 0:00:04]} Rb8 {[%emt 0:00:01]} 54. Re7+ {[%emt 0:00:03]} Kf4 {[%emt 0:00:02]} 55. c7 {[%emt 0:00:01]} Ra8 {[%emt 0:00:01]} 56. c8=Q {[%emt 0:00:02]} Rxc8+ {[%emt 0:00:02]} 57. Nxc8 {[%emt 0:00:01]} Ke3 {[%emt 0:00:01]} 58. d6 {[%emt 0:00:01]} Kd2 {[%emt 0:00:02]} 59. d7 {[%emt 0:00:00]} Kc2 {[%emt 0:00:01]} 60. d8=Q {[%emt 0:00:02]} Kb2 {[%emt 0:00:02]} 61. Rh7 {[%emt 0:00:03]} Kxa2 {[%emt 0:00:02]} 62. Qd2+ {[%emt 0:00:05]} Kxb3 {[%emt 0:00:05]} 63. Rh3+ {[%emt 0:00:02]} Ka4 {[%emt 0:00:00]} 64. Qxb4# {Kb5+} 1-0

[Event "3rd FIDE WCCC Blitz G12 2019"]
[Site "Minsk"]
[Date "2019.08.18"]
[Round "8.3"]
[White "Babic, Milana"]
[Black "Shevtsova, Darya"]
[Result "1-0"]
[ECO "A06"]
[WhiteElo "1689"]
[BlackElo "1596"]
[Annotator "NA"]
[PlyCount "119"]
[EventDate "2019.08.18"]
[EventType "swiss"]
[EventCountry "BLR"]
[SourceTitle "playchess.com"]
[Source "ChessBase"]
[SourceQuality "1"]
[TimeControl "300+2"]

1. Nf3 {[%emt 0:00:00]} d5 {[%emt 0:00:00]} 2. g3 {[%emt 0:00:00]} Nf6 {[%emt 0:00:01]} 3. Bg2 {[%emt 0:00:00]} Bf5 {[%emt 0:00:02]} 4. O-O {[%emt 0:00:02]} e6 {[%emt 0:00:02]} 5. d3 {[%emt 0:00:01]} Be7 {[%emt 0:00:02]} 6. Nbd2 {[%emt 0:00:01]} O-O {[%emt 0:00:03]} 7. b3 {[%emt 0:00:01]} c6 {[%emt 0:00:03]} 8. Bb2 {[%emt 0:00:01]} Nbd7 {[%emt 0:00:01]} 9. c4 {[%emt 0:00:01]} h6 {[%emt 0:00:25]} 10. a3 {[%emt 0:00:28]} a5 {[%emt 0:00:03]} 11. Rc1 {[%emt 0:00:27]} Qb6 {[%emt 0:00:08]} 12. Re1 {[%emt 0:00:02]} Ng4 {[%emt 0:00:23]} 13. Rf1 {[%emt 0:00:22]} Bf6 {[%emt 0:00:06]} 14. Bxf6 Ngxf6 {[%emt 0:00:03]} 15. h3 {[%emt 0:00:19]} Qc5 {[%emt 0:00:12]} 16. b4 {[%emt 0:00:28]} axb4 {[%emt 0:00:19]} 17. axb4 Qxb4 {[%emt 0:00:08]} 18. Rb1 {[%emt 0:00:01]} Qc3 {[%emt 0:00:43]} 19. Rxb7 Ra2 {[%emt 0:00:18]} 20. Rb3 {[%emt 0:00:24]} Qa5 {[%emt 0:00:06]} 21. e4 {[%emt 0:00:51]} dxe4 {[%emt 0:00:06]} 22. dxe4 {[%emt 0:00:01]} Nxe4 {[%emt 0:00:08]} 23. Nxe4 {[%emt 0:00:02]} Bxe4 {[%emt 0:00:01]} 24. Qxd7 {[%emt 0:00:02]} Qf5 {[%emt 0:00:24]} 25. Nd4 {[%emt 0:00:07]} Qe5 {[%emt 0:00:09]} 26. Re3 {[%emt 0:00:06]} f5 {[%emt 0:00:47]} 27. Bxe4 {[%emt 0:00:13]} fxe4 {[%emt 0:00:04]} 28. Qxe6+ {[%emt 0:00:02]} Qxe6 {[%emt 0:00:01]} 29. Nxe6 {[%emt 0:00:01]} Rf6 {[%emt 0:00:03]} 30. Rxe4 {[%emt 0:00:03]} Kf7 {[%emt 0:00:05]} 31. Nd4 {[%emt 0:00:03]} c5 {[%emt 0:00:01]} 32. Nb5 {[%emt 0:00:02]} Rc2 {[%emt 0:00:03]} 33. Re5 {[%emt 0:00:09]} Rxc4 {[%emt 0:00:04]} 34. Nc7 {[%emt 0:00:16]} Rc2 {[%emt 0:00:05]} 35. Nd5 Rf3 {[%emt 0:00:04]} 36. Re7+ {[%emt 0:00:13]} Kg6 {[%emt 0:00:04]} 37. Nf4+ {[%emt 0:00:02]} Kf6 {[%emt 0:00:03]} 38. Rc7 {[%emt 0:00:03]} c4 {[%emt 0:00:03]} 39. Kg2 {[%emt 0:00:04]} Rb3 {[%emt 0:00:12]} 40. Re1 {[%emt 0:00:04]} Rb6 {[%emt 0:00:08]} 41. Nd5+ {[%emt 0:00:02]} Kg6 {[%emt 0:00:02]} 42. Nxb6 {[%emt 0:00:01]} c3 {[%emt 0:00:01]} 43. Re3 {[%emt 0:00:02]} Rb2 {[%emt 0:00:03]} 44. Rexc3 {[%emt 0:00:05]} Rxb6 {[%emt 0:00:02]} 45. R3c6+ {[%emt 0:00:01]} Rxc6 {[%emt 0:00:01]} 46. Rxc6+ {[%emt 0:00:00]} Kf5 {[%emt 0:00:00]} 47. g4+ {[%emt 0:00:00]} Kf4 {[%emt 0:00:00]} 48. Rg6 {[%emt 0:00:01]} Ke5 {[%emt 0:00:03]} 49. Rxg7 {[%emt 0:00:01]} Kf6 {[%emt 0:00:01]} 50. Ra7 {[%emt 0:00:01]} Kg5 {[%emt 0:00:01]} 51. Kg3 {[%emt 0:00:03]} h5 {[%emt 0:00:01]} 52. h4+ {[%emt 0:00:00]} Kh6 {[%emt 0:00:02]} 53. g5+ {[%emt 0:00:01]} Kg6 {[%emt 0:00:01]} 54. Ra6+ {[%emt 0:00:02]} Kg7 {[%emt 0:00:01]} 55. Kf4 {[%emt 0:00:01]} Kf7 {[%emt 0:00:01]} 56. Kf5 {[%emt 0:00:01]} Kg7 {[%emt 0:00:01]} 57. Ra7+ {[%emt 0:00:01]} Kg8 {[%emt 0:00:01]} 58. Kf6 {[%emt 0:00:01]} Kh8 {[%emt 0:00:01]} 59. Kg6 {[%emt 0:00:01]} Kg8 {[%emt 0:00:02]} 60. Ra8# {[%emt 0:00:01]} 1-0

[Event "3rd FIDE WCCC Blitz G12 2019"]
[Site "Minsk"]
[Date "2019.08.18"]
[Round "8.4"]
[White "Nguyen, Le Cam Hien"]
[Black "Szczotka, Klara"]
[Result "0-1"]
[ECO "B20"]
[WhiteElo "1579"]
[BlackElo "1732"]
[Annotator "NA"]
[PlyCount "122"]
[EventDate "2019.08.18"]
[EventType "swiss"]
[EventCountry "BLR"]
[SourceTitle "playchess.com"]
[Source "ChessBase"]
[SourceQuality "1"]
[TimeControl "300+2"]

1. e4 {[%emt 0:00:00]} c5 {[%emt 0:00:00]} 2. d3 {[%emt 0:00:01]} e6 {[%emt 0:00:00]} 3. g3 {[%emt 0:00:02]} d6 {[%emt 0:00:06]} 4. Bg2 {[%emt 0:00:02]} Qc7 {[%emt 0:00:01]} 5. f4 {[%emt 0:00:02]} Nc6 {[%emt 0:00:02]} 6. Nf3 {[%emt 0:00:01]} Nge7 {[%emt 0:00:03]} 7. O-O {[%emt 0:00:04]} g6 {[%emt 0:00:01]} 8. c3 {[%emt 0:00:02]} Bg7 {[%emt 0:00:01]} 9. g4 {[%emt 0:00:15]} Bd7 {[%emt 0:00:04]} 10. Be3 {[%emt 0:00:06]} h5 {[%emt 0:00:44]} 11. g5 {[%emt 0:00:11]} b6 {[%emt 0:00:02]} 12. Nbd2 {[%emt 0:00:02]} d5 {[%emt 0:00:10]} 13. Nh4 {[%emt 0:00:32]} d4 {[%emt 0:00:20]} 14. cxd4 {[%emt 0:00:08]} cxd4 {[%emt 0:00:02]} 15. Bf2 {[%emt 0:00:10]} Qxf4 {[%emt 0:00:15]} 16. Nhf3 {[%emt 0:00:34]} h4 {[%emt 0:01:03]} 17. h3 {[%emt 0:00:10]} Ne5 {[%emt 0:00:30]} 18. Bxd4 {[%emt 0:00:29]} Nxf3+ {[%emt 0:00:03]} 19. Nxf3 {[%emt 0:00:02]} Bxd4+ 20. Nxd4 {[%emt 0:00:03]} Qe3+ {[%emt 0:00:03]} 21. Kh1 {[%emt 0:00:05]} Qxd4 {[%emt 0:00:01]} 22. Qf3 {[%emt 0:00:15]} Rf8 {[%emt 0:00:20]} 23. Rac1 {[%emt 0:00:09]} Rc8 {[%emt 0:00:18]} 24. Rxc8+ Bxc8 {[%emt 0:00:01]} 25. Rc1 {[%emt 0:00:17]} Kd7 {[%emt 0:01:05]} 26. Qf4 {[%emt 0:00:16]} Qd6 {[%emt 0:00:02]} 27. e5 {[%emt 0:00:06]} Qb8 {[%emt 0:00:28]} 28. Qa4+ {[%emt 0:00:10]} Kd8 {[%emt 0:00:03]} 29. Qd4+ {[%emt 0:00:13]} Bd7 {[%emt 0:00:01]} 30. Be4 {[%emt 0:00:12]} Nf5 {[%emt 0:00:02]} 31. Bxf5 {[%emt 0:00:01]} gxf5 {[%emt 0:00:02]} 32. b4 {[%emt 0:00:04]} Qb7+ {[%emt 0:00:01]} 33. Kh2 {[%emt 0:00:02]} Qf3 {[%emt 0:00:03]} 34. Qd6 {[%emt 0:00:16]} Ke8 {[%emt 0:00:05]} 35. Rc7 {[%emt 0:00:09]} Qf2+ {[%emt 0:00:04]} 36. Kh1 {[%emt 0:00:01]} Qf3+ {[%emt 0:00:02]} 37. Kg1 {[%emt 0:00:01]} Qg3+ {[%emt 0:00:01]} 38. Kf1 {[%emt 0:00:01]} Qf3+ {[%emt 0:00:01]} 39. Ke1 {[%emt 0:00:02]} Qe3+ {[%emt 0:00:01]} 40. Kf1 {[%emt 0:00:08]} Qf3+ {[%emt 0:00:02]} 41. Ke1 {[%emt 0:00:02]} Qd5 {[%emt 0:00:05]} 42. Rxa7 {[%emt 0:00:08]} Qxd6 {[%emt 0:00:01]} 43. exd6 {[%emt 0:00:01]} f6 44. g6 {[%emt 0:00:02]} Bc8 {[%emt 0:00:06]} 45. Re7+ {[%emt 0:00:07]} Kd8 {[%emt 0:00:00]} 46. Rf7 {[%emt 0:00:07]} Rg8 {[%emt 0:00:01]} 47. Rxf6 {[%emt 0:00:02]} Ke8 {[%emt 0:00:04]} 48. Kd2 {[%emt 0:00:03]} Bd7 {[%emt 0:00:02]} 49. Kc3 {[%emt 0:00:02]} Rf8 {[%emt 0:00:03]} 50. Rxf8+ {[%emt 0:00:03]} Kxf8 {[%emt 0:00:01]} 51. Kd4 {[%emt 0:00:02]} Kg7 {[%emt 0:00:00]} 52. Kc3 {[%emt 0:00:05]} Kxg6 {[%emt 0:00:01]} 53. Kb3 {[%emt 0:00:01]} f4 {[%emt 0:00:01]} 54. Kc3 {[%emt 0:00:01]} f3 {[%emt 0:00:01]} 55. Kd2 {[%emt 0:00:01]} Kf5 {[%emt 0:00:00]} 56. Ke3 {[%emt 0:00:01]} Bc6 {[%emt 0:00:02]} 57. a4 {[%emt 0:00:02]} Ke5 {[%emt 0:00:01]} 58. a5 {[%emt 0:00:02]} bxa5 {[%emt 0:00:02]} 59. bxa5 {[%emt 0:00:01]} Kxd6 {[%emt 0:00:01]} 60. a6 {[%emt 0:00:04]} Kc7 {[%emt 0:00:00]} 61. d4 {[%emt 0:00:03]} Kb6 {[%emt 0:00:01]} 0-1

[Event "3rd FIDE WCCC Blitz G12 2019"]
[Site "Minsk"]
[Date "2019.08.18"]
[Round "8.5"]
[White "Ivanytska, Liudmyla"]
[Black "Korovina, Yana"]
[Result "1-0"]
[ECO "C50"]
[WhiteElo "1539"]
[BlackElo "1511"]
[Annotator "NA"]
[PlyCount "113"]
[EventDate "2019.08.18"]
[EventType "swiss"]
[EventCountry "BLR"]
[SourceTitle "playchess.com"]
[Source "ChessBase"]
[SourceQuality "1"]
[TimeControl "300+2"]

1. e4 {[%emt 0:00:00]} e5 {[%emt 0:00:00]} 2. Bc4 {[%emt 0:00:01]} Nc6 {[%emt 0:00:01]} 3. Nc3 {[%emt 0:00:01]} Nf6 {[%emt 0:00:03]} 4. d3 {[%emt 0:00:01]} Bc5 {[%emt 0:00:07]} 5. Nf3 {[%emt 0:00:01]} d6 {[%emt 0:00:00]} 6. h3 {[%emt 0:00:00]} h6 {[%emt 0:00:01]} 7. O-O {[%emt 0:00:02]} O-O {[%emt 0:00:01]} 8. Be3 {[%emt 0:00:01]} Bb6 {[%emt 0:00:01]} 9. d4 {[%emt 0:00:02]} exd4 {[%emt 0:00:09]} 10. Nxd4 {[%emt 0:00:01]} Nxd4 {[%emt 0:00:09]} 11. Bxd4 {[%emt 0:00:01]} Bxd4 {[%emt 0:00:04]} 12. Qxd4 {[%emt 0:00:01]} Qe7 {[%emt 0:00:04]} 13. Rfe1 {[%emt 0:00:01]} Be6 {[%emt 0:00:02]} 14. e5 {[%emt 0:00:11]} dxe5 {[%emt 0:00:34]} 15. Rxe5 {[%emt 0:01:53]} Qd6 16. Qxd6 {[%emt 0:00:02]} cxd6 {[%emt 0:00:07]} 17. Rxe6 {[%emt 0:00:01]} fxe6 {[%emt 0:00:04]} 18. Bxe6+ {[%emt 0:00:01]} Kh8 {[%emt 0:00:05]} 19. Nb5 {[%emt 0:00:01]} Rae8 {[%emt 0:00:25]} 20. Bb3 {[%emt 0:00:09]} Re2 {[%emt 0:00:42]} 21. Nd4 {[%emt 0:00:30]} Rd2 {[%emt 0:00:15]} 22. Nf3 {[%emt 0:00:02]} Re2 {[%emt 0:00:03]} 23. Kf1 {[%emt 0:00:04]} Ree8 {[%emt 0:00:01]} 24. Rd1 {[%emt 0:00:06]} d5 {[%emt 0:00:15]} 25. Bxd5 {[%emt 0:00:18]} Rd8 {[%emt 0:00:21]} 26. c4 {[%emt 0:00:02]} b5 {[%emt 0:00:03]} 27. b3 {[%emt 0:00:01]} bxc4 {[%emt 0:00:06]} 28. bxc4 {[%emt 0:00:02]} Rfe8 {[%emt 0:00:03]} 29. Nh4 {[%emt 0:00:24]} Nxd5 {[%emt 0:00:04]} 30. cxd5 {[%emt 0:00:04]} Kg8 {[%emt 0:00:19]} 31. Nf5 {[%emt 0:00:02]} Kf7 {[%emt 0:00:10]} 32. d6 {[%emt 0:00:07]} Kf6 {[%emt 0:00:04]} 33. g4 {[%emt 0:00:16]} g6 {[%emt 0:00:04]} 34. Ng3 {[%emt 0:00:08]} Re6 {[%emt 0:00:06]} 35. f3 {[%emt 0:00:06]} Re3 {[%emt 0:00:40]} 36. Kf2 {[%emt 0:00:02]} Ra3 {[%emt 0:00:01]} 37. Rd2 {[%emt 0:00:07]} Ra6 {[%emt 0:00:03]} 38. Ne4+ {[%emt 0:00:07]} Ke5 {[%emt 0:00:05]} 39. Rb2 {[%emt 0:00:18]} Rc6 {[%emt 0:00:08]} 40. Ke3 {[%emt 0:00:04]} Rb6 {[%emt 0:00:04]} 41. Rc2 {[%emt 0:00:06]} Rb5 {[%emt 0:00:05]} 42. a4 {[%emt 0:00:08]} Rb3+ {[%emt 0:00:03]} 43. Ke2 {[%emt 0:00:02]} Rb4 {[%emt 0:00:11]} 44. Ke3 {[%emt 0:00:11]} Rb3+ {[%emt 0:00:00]} 45. Ke2 {[%emt 0:00:04]} Rb4 {[%emt 0:00:01]} 46. a5 {[%emt 0:00:06]} Rb5 {[%emt 0:00:03]} 47. Ra2 {[%emt 0:00:20]} Kf4 {[%emt 0:00:04]} 48. Kf2 {[%emt 0:00:11]} Ke5 {[%emt 0:00:09]} 49. Ke2 {[%emt 0:00:05]} Rb3 {[%emt 0:00:02]} 50. Nd2 {[%emt 0:00:03]} Kxd6 {[%emt 0:00:08]} 51. Nxb3 {[%emt 0:00:01]} Kc6 {[%emt 0:00:02]} 52. Rc2+ {[%emt 0:00:01]} Kb5 {[%emt 0:00:02]} 53. Rc7 {[%emt 0:00:02]} Kb4 {[%emt 0:00:05]} 54. Nd2 {[%emt 0:00:00]} Kxa5 {[%emt 0:00:01]} 55. Rxa7+ {[%emt 0:00:01]} Kb6 {[%emt 0:00:01]} 56. Rg7 {[%emt 0:00:02]} Rd6 {[%emt 0:00:01]} 57. h4 {[%emt 0:00:01]} 1-0